Workbook

Sheet Sheet1
N1: Fermat's Last Theorem
A2: Theorem: There are no equations other than x^2 + y^2 = z^2 or 3^2 + 4^2 = 5^2 which translate to 9 + 16 = 25 that form a balance equation. This is the only balanced equation with these parameters which balances out.
A3: N/E Means Not Equal. The spreadsheet is protected so the content and formulas cannot be deleted by mistake. The only cell that is available to change is S4 nelow to any any power or exponent desired for testing evaluation and purposes.
A4: power of : | F4: 2 | L4: Equation | N4: power of : | S4: 7 | Y4: Equation
C5: ^F4 | F5: ^F4 | H5: sum | I5: N/E | K5: ^F4 | L5: varaince | P5: ^S4 | S5: ^S4 | U5: sum | V5: N/E | X5: ^S4 | Y5: varaince
B6: 4 | C6: =B6^$F$4 -> 16 | D6: + | E6: =B6+1 -> 5 | F6: =E6^$F$4 -> 25 | H6: =C6+F6 -> 41 | J6: =E6+1 -> 6 | K6: =J6^$F$4 -> 36 | L6: =H6-K6 -> 5 | O6: 4 | P6: =O6^$S$4 -> 16384 | Q6: + | R6: =O6+1 -> 5 | S6: =R6^$S$4 -> 78125 | U6: =P6+S6 -> 94509 | W6: =R6+1 -> 6 | X6: =W6^$S$4 -> 279936 | Y6: =U6-X6 -> -185427
B7: =B6+1 -> 5 | C7: =B7^$F$4 -> 25 | D7: + | E7: =B7+1 -> 6 | F7: =E7^$F$4 -> 36 | H7: =C7+F7 -> 61 | I7: N/E | J7: =E7+1 -> 7 | K7: =J7^$F$4 -> 49 | L7: =H7-K7 -> 12 | O7: =O6+1 -> 5 | P7: =O7^$S$4 -> 78125 | Q7: + | R7: =O7+1 -> 6 | S7: =R7^$S$4 -> 279936 | U7: =P7+S7 -> 358061 | V7: N/E | W7: =R7+1 -> 7 | X7: =W7^$S$4 -> 823543 | Y7: =U7-X7 -> -465482
B8: =B7+1 -> 6 | C8: =B8^$F$4 -> 36 | D8: + | E8: =B8+1 -> 7 | F8: =E8^$F$4 -> 49 | H8: =C8+F8 -> 85 | I8: N/E | J8: 8 | K8: 64 | L8: 21 | O8: =O7+1 -> 6 | P8: =O8^$S$4 -> 279936 | Q8: + | R8: =O8+1 -> 7 | S8: =R8^$S$4 -> 823543 | U8: =P8+S8 -> 1103479 | V8: N/E | W8: =R8+1 -> 8 | X8: =W8^$S$4 -> 2097152 | Y8: =U8-X8 -> -993673
B9: 7 | C9: 49 | D9: + | E9: 8 | F9: 64 | H9: 113 | I9: N/E | J9: 9 | K9: 81 | L9: 32 | O9: 7 | P9: 823543 | Q9: + | R9: 8 | S9: 2097152 | U9: 2920695 | V9: N/E | W9: 9 | X9: 4782969 | Y9: -1862274
B10: 8 | C10: 64 | D10: + | E10: 9 | F10: 81 | H10: 145 | I10: N/E | J10: 10 | K10: 100 | L10: 45 | O10: 8 | P10: 2097152 | Q10: + | R10: 9 | S10: 4782969 | U10: 6880121 | V10: N/E | W10: 10 | X10: 10000000 | Y10: -3119879
B11: 9 | C11: 81 | D11: + | E11: 10 | F11: 100 | H11: 181 | I11: N/E | J11: 11 | K11: 121 | L11: 60 | O11: 9 | P11: 4782969 | Q11: + | R11: 10 | S11: 10000000 | U11: 14782969 | V11: N/E | W11: 11 | X11: 19487171 | Y11: -4704202
B12: 10 | C12: 100 | D12: + | E12: 11 | F12: 121 | H12: 221 | I12: N/E | J12: 12 | K12: 144 | L12: 77 | O12: 10 | P12: 10000000 | Q12: + | R12: 11 | S12: 19487171 | U12: 29487171 | V12: N/E | W12: 12 | X12: 35831808 | Y12: -6344637
B13: 11 | C13: 121 | D13: + | E13: 12 | F13: 144 | H13: 265 | I13: N/E | J13: 13 | K13: 169 | L13: 96 | O13: 11 | P13: 19487171 | Q13: + | R13: 12 | S13: 35831808 | U13: 55318979 | V13: N/E | W13: 13 | X13: 62748517 | Y13: -7429538
B14: 12 | C14: 144 | D14: + | E14: 13 | F14: 169 | H14: 313 | I14: N/E | J14: 14 | K14: 196 | L14: 117 | O14: 12 | P14: 35831808 | Q14: + | R14: 13 | S14: 62748517 | U14: 98580325 | V14: N/E | W14: 14 | X14: 105413504 | Y14: -6833179
B15: 13 | C15: 169 | D15: + | E15: 14 | F15: 196 | H15: 365 | I15: N/E | J15: 15 | K15: 225 | L15: 140 | O15: 13 | P15: 62748517 | Q15: + | R15: 14 | S15: 105413504 | U15: 168162021 | V15: N/E | W15: 15 | X15: 170859375 | Y15: -2697354
B16: 14 | C16: 196 | D16: + | E16: 15 | F16: 225 | H16: 421 | I16: N/E | J16: 16 | K16: 256 | L16: 165 | O16: 14 | P16: 105413504 | Q16: + | R16: 15 | S16: 170859375 | U16: 276272879 | V16: N/E | W16: 16 | X16: 268435456 | Y16: 7837423
B17: 15 | C17: 225 | D17: + | E17: 16 | F17: 256 | H17: 481 | I17: N/E | J17: 17 | K17: 289 | L17: 192 | O17: 15 | P17: 170859375 | Q17: + | R17: 16 | S17: 268435456 | U17: 439294831 | V17: N/E | W17: 17 | X17: 410338673 | Y17: 28956158
B18: 16 | C18: 256 | D18: + | E18: 17 | F18: 289 | H18: 545 | I18: N/E | J18: 18 | K18: 324 | L18: 221 | O18: 16 | P18: 268435456 | Q18: + | R18: 17 | S18: 410338673 | U18: 678774129 | V18: N/E | W18: 18 | X18: 612220032 | Y18: 66554097
B19: 17 | C19: 289 | D19: + | E19: 18 | F19: 324 | H19: 613 | I19: N/E | J19: 19 | K19: 361 | L19: 252 | O19: 17 | P19: 410338673 | Q19: + | R19: 18 | S19: 612220032 | U19: 1022558705 | V19: N/E | W19: 19 | X19: 893871739 | Y19: 128686966
B20: 18 | C20: 324 | D20: + | E20: 19 | F20: 361 | H20: 685 | I20: N/E | J20: 20 | K20: 400 | L20: 285 | O20: 18 | P20: 612220032 | Q20: + | R20: 19 | S20: 893871739 | U20: 1506091771 | V20: N/E | W20: 20 | X20: 1280000000 | Y20: 226091771
B21: 19 | C21: 361 | D21: + | E21: 20 | F21: 400 | H21: 761 | I21: N/E | J21: 21 | K21: 441 | L21: 320 | O21: 19 | P21: 893871739 | Q21: + | R21: 20 | S21: 1280000000 | U21: 2173871739 | V21: N/E | W21: 21 | X21: 1801088541 | Y21: 372783198
B22: 20 | C22: 400 | D22: + | E22: 21 | F22: 441 | H22: 841 | I22: N/E | J22: 22 | K22: 484 | L22: 357 | O22: 20 | P22: 1280000000 | Q22: + | R22: 21 | S22: 1801088541 | U22: 3081088541 | V22: N/E | W22: 22 | X22: 2494357888 | Y22: 586730653
B23: 21 | C23: 441 | D23: + | E23: 22 | F23: 484 | H23: 925 | I23: N/E | J23: 23 | K23: 529 | L23: 396 | O23: 21 | P23: 1801088541 | Q23: + | R23: 22 | S23: 2494357888 | U23: 4295446429 | V23: N/E | W23: 23 | X23: 3404825447 | Y23: 890620982
B24: 22 | C24: 484 | D24: + | E24: 23 | F24: 529 | H24: 1013 | I24: N/E | J24: 24 | K24: 576 | L24: 437 | O24: 22 | P24: 2494357888 | Q24: + | R24: 23 | S24: 3404825447 | U24: 5899183335 | V24: N/E | W24: 24 | X24: 4586471424 | Y24: 1312711911
B25: 23 | C25: 529 | D25: + | E25: 24 | F25: 576 | H25: 1105 | I25: N/E | J25: 25 | K25: 625 | L25: 480 | O25: 23 | P25: 3404825447 | Q25: + | R25: 24 | S25: 4586471424 | U25: 7991296871 | V25: N/E | W25: 25 | X25: 6103515625 | Y25: 1887781246
B26: 24 | C26: 576 | D26: + | E26: 25 | F26: 625 | H26: 1201 | I26: N/E | J26: 26 | K26: 676 | L26: 525 | O26: 24 | P26: 4586471424 | Q26: + | R26: 25 | S26: 6103515625 | U26: 10689987049 | V26: N/E | W26: 26 | X26: 8031810176 | Y26: 2658176873
B27: 25 | C27: 625 | D27: + | E27: 26 | F27: 676 | H27: 1301 | I27: N/E | J27: 27 | K27: 729 | L27: 572 | O27: 25 | P27: 6103515625 | Q27: + | R27: 26 | S27: 8031810176 | U27: 14135325801 | V27: N/E | W27: 27 | X27: 10460353203 | Y27: 3674972598
B28: 26 | C28: 676 | D28: + | E28: 27 | F28: 729 | H28: 1405 | I28: N/E | J28: 28 | K28: 784 | L28: 621 | O28: 26 | P28: 8031810176 | Q28: + | R28: 27 | S28: 10460353203 | U28: 18492163379 | V28: N/E | W28: 28 | X28: 13492928512 | Y28: 4999234867
B29: 27 | C29: 729 | D29: + | E29: 28 | F29: 784 | H29: 1513 | I29: N/E | J29: 29 | K29: 841 | L29: 672 | O29: 27 | P29: 10460353203 | Q29: + | R29: 28 | S29: 13492928512 | U29: 23953281715 | V29: N/E | W29: 29 | X29: 17249876309 | Y29: 6703405406
B30: 28 | C30: 784 | D30: + | E30: 29 | F30: 841 | H30: 1625 | I30: N/E | J30: 30 | K30: 900 | L30: 725 | O30: 28 | P30: 13492928512 | Q30: + | R30: 29 | S30: 17249876309 | U30: 30742804821 | V30: N/E | W30: 30 | X30: 21870000000 | Y30: 8872804821
B31: 29 | C31: 841 | D31: + | E31: 30 | F31: 900 | H31: 1741 | I31: N/E | J31: 31 | K31: 961 | L31: 780 | O31: 29 | P31: 17249876309 | Q31: + | R31: 30 | S31: 21870000000 | U31: 39119876309 | V31: N/E | W31: 31 | X31: 27512614111 | Y31: 11607262198
B32: 30 | C32: 900 | D32: + | E32: 31 | F32: 961 | H32: 1861 | I32: N/E | J32: 32 | K32: 1024 | L32: 837 | O32: 30 | P32: 21870000000 | Q32: + | R32: 31 | S32: 27512614111 | U32: 49382614111 | V32: N/E | W32: 32 | X32: 34359738368 | Y32: 15022875743
B33: 31 | C33: 961 | D33: + | E33: 32 | F33: 1024 | H33: 1985 | I33: N/E | J33: 33 | K33: 1089 | L33: 896 | O33: 31 | P33: 27512614111 | Q33: + | R33: 32 | S33: 34359738368 | U33: 61872352479 | V33: N/E | W33: 33 | X33: 42618442977 | Y33: 19253909502
B34: 32 | C34: 1024 | D34: + | E34: 33 | F34: 1089 | H34: 2113 | I34: N/E | J34: 34 | K34: 1156 | L34: 957 | O34: 32 | P34: 34359738368 | Q34: + | R34: 33 | S34: 42618442977 | U34: 76978181345 | V34: N/E | W34: 34 | X34: 52523350144 | Y34: 24454831201
B35: 33 | C35: 1089 | D35: + | E35: 34 | F35: 1156 | H35: 2245 | I35: N/E | J35: 35 | K35: 1225 | L35: 1020 | O35: 33 | P35: 42618442977 | Q35: + | R35: 34 | S35: 52523350144 | U35: 95141793121 | V35: N/E | W35: 35 | X35: 64339296875 | Y35: 30802496246
B36: 34 | C36: 1156 | D36: + | E36: 35 | F36: 1225 | H36: 2381 | I36: N/E | J36: 36 | K36: 1296 | L36: 1085 | O36: 34 | P36: 52523350144 | Q36: + | R36: 35 | S36: 64339296875 | U36: 116862647019 | V36: N/E | W36: 36 | X36: 78364164096 | Y36: 38498482923
B37: 35 | C37: 1225 | D37: + | E37: 36 | F37: 1296 | H37: 2521 | I37: N/E | J37: 37 | K37: 1369 | L37: 1152 | O37: 35 | P37: 64339296875 | Q37: + | R37: 36 | S37: 78364164096 | U37: 142703460971 | V37: N/E | W37: 37 | X37: 94931877133 | Y37: 47771583838
B38: 36 | C38: 1296 | D38: + | E38: 37 | F38: 1369 | H38: 2665 | I38: N/E | J38: 38 | K38: 1444 | L38: 1221 | O38: 36 | P38: 78364164096 | Q38: + | R38: 37 | S38: 94931877133 | U38: 173296041229 | V38: N/E | W38: 38 | X38: 114415582592 | Y38: 58880458637
B39: 37 | C39: 1369 | D39: + | E39: 38 | F39: 1444 | H39: 2813 | I39: N/E | J39: 39 | K39: 1521 | L39: 1292 | O39: 37 | P39: 94931877133 | Q39: + | R39: 38 | S39: 114415582592 | U39: 209347459725 | V39: N/E | W39: 39 | X39: 137231006679 | Y39: 72116453046
B40: 38 | C40: 1444 | D40: + | E40: 39 | F40: 1521 | H40: 2965 | I40: N/E | J40: 40 | K40: 1600 | L40: 1365 | O40: 38 | P40: 114415582592 | Q40: + | R40: 39 | S40: 137231006679 | U40: 251646589271 | V40: N/E | W40: 40 | X40: 163840000000 | Y40: 87806589271
B41: 39 | C41: 1521 | D41: + | E41: 40 | F41: 1600 | H41: 3121 | I41: N/E | J41: 41 | K41: 1681 | L41: 1440 | O41: 39 | P41: 137231006679 | Q41: + | R41: 40 | S41: 163840000000 | U41: 301071006679 | V41: N/E | W41: 41 | X41: 194754273881 | Y41: 106316732798
B42: 40 | C42: 1600 | D42: + | E42: 41 | F42: 1681 | H42: 3281 | I42: N/E | J42: 42 | K42: 1764 | L42: 1517 | O42: 40 | P42: 163840000000 | Q42: + | R42: 41 | S42: 194754273881 | U42: 358594273881 | V42: N/E | W42: 42 | X42: 230539333248 | Y42: 128054940633
B43: 41 | C43: 1681 | D43: + | E43: 42 | F43: 1764 | H43: 3445 | I43: N/E | J43: 43 | K43: 1849 | L43: 1596 | O43: 41 | P43: 194754273881 | Q43: + | R43: 42 | S43: 230539333248 | U43: 425293607129 | V43: N/E | W43: 43 | X43: 271818611107 | Y43: 153474996022
B44: 42 | C44: 1764 | D44: + | E44: 43 | F44: 1849 | H44: 3613 | I44: N/E | J44: 44 | K44: 1936 | L44: 1677 | O44: 42 | P44: 230539333248 | Q44: + | R44: 43 | S44: 271818611107 | U44: 502357944355 | V44: N/E | W44: 44 | X44: 319277809664 | Y44: 183080134691
B45: 43 | C45: 1849 | D45: + | E45: 44 | F45: 1936 | H45: 3785 | I45: N/E | J45: 45 | K45: 2025 | L45: 1760 | O45: 43 | P45: 271818611107 | Q45: + | R45: 44 | S45: 319277809664 | U45: 591096420771 | V45: N/E | W45: 45 | X45: 373669453125 | Y45: 217426967646
B46: 44 | C46: 1936 | D46: + | E46: 45 | F46: 2025 | H46: 3961 | I46: N/E | J46: 46 | K46: 2116 | L46: 1845 | O46: 44 | P46: 319277809664 | Q46: + | R46: 45 | S46: 373669453125 | U46: 692947262789 | V46: N/E | W46: 46 | X46: 435817657216 | Y46: 257129605573
B47: 45 | C47: 2025 | D47: + | E47: 46 | F47: 2116 | H47: 4141 | I47: N/E | J47: 47 | K47: 2209 | L47: 1932 | O47: 45 | P47: 373669453125 | Q47: + | R47: 46 | S47: 435817657216 | U47: 809487110341 | V47: N/E | W47: 47 | X47: 506623120463 | Y47: 302863989878
B48: 46 | C48: 2116 | D48: + | E48: 47 | F48: 2209 | H48: 4325 | I48: N/E | J48: 48 | K48: 2304 | L48: 2021 | O48: 46 | P48: 435817657216 | Q48: + | R48: 47 | S48: 506623120463 | U48: 942440777679 | V48: N/E | W48: 48 | X48: 587068342272 | Y48: 355372435407
B49: 47 | C49: 2209 | D49: + | E49: 48 | F49: 2304 | H49: 4513 | I49: N/E | J49: 49 | K49: 2401 | L49: 2112 | O49: 47 | P49: 506623120463 | Q49: + | R49: 48 | S49: 587068342272 | U49: 1093691462735 | V49: N/E | W49: 49 | X49: 678223072849 | Y49: 415468389886
B50: 48 | C50: 2304 | D50: + | E50: 49 | F50: 2401 | H50: 4705 | I50: N/E | J50: 50 | K50: 2500 | L50: 2205 | O50: 48 | P50: 587068342272 | Q50: + | R50: 49 | S50: 678223072849 | U50: 1265291415121 | V50: N/E | W50: 50 | X50: 781250000000 | Y50: 484041415121
B51: 49 | C51: 2401 | D51: + | E51: 50 | F51: 2500 | H51: 4901 | I51: N/E | J51: 51 | K51: 2601 | L51: 2300 | O51: 49 | P51: 678223072849 | Q51: + | R51: 50 | S51: 781250000000 | U51: 1459473072849 | V51: N/E | W51: 51 | X51: 897410677851 | Y51: 562062394998
B52: 50 | C52: 2500 | D52: + | E52: 51 | F52: 2601 | H52: 5101 | I52: N/E | J52: 52 | K52: 2704 | L52: 2397 | O52: 50 | P52: 781250000000 | Q52: + | R52: 51 | S52: 897410677851 | U52: 1678660677851 | V52: N/E | W52: 52 | X52: 1028071702528 | Y52: 650588975323
B53: 51 | C53: 2601 | D53: + | E53: 52 | F53: 2704 | H53: 5305 | I53: N/E | J53: 53 | K53: 2809 | L53: 2496 | O53: 51 | P53: 897410677851 | Q53: + | R53: 52 | S53: 1028071702528 | U53: 1925482380379 | V53: N/E | W53: 53 | X53: 1174711139837 | Y53: 750771240542
B54: 52 | C54: 2704 | D54: + | E54: 53 | F54: 2809 | H54: 5513 | I54: N/E | J54: 54 | K54: 2916 | L54: 2597 | O54: 52 | P54: 1028071702528 | Q54: + | R54: 53 | S54: 1174711139837 | U54: 2202782842365 | V54: N/E | W54: 54 | X54: 1338925209984 | Y54: 863857632381
B55: 53 | C55: 2809 | D55: + | E55: 54 | F55: 2916 | H55: 5725 | I55: N/E | J55: 55 | K55: 3025 | L55: 2700 | O55: 53 | P55: 1174711139837 | Q55: + | R55: 54 | S55: 1338925209984 | U55: 2513636349821 | V55: N/E | W55: 55 | X55: 1522435234375 | Y55: 991201115446
B56: 54 | C56: 2916 | D56: + | E56: 55 | F56: 3025 | H56: 5941 | I56: N/E | J56: 56 | K56: 3136 | L56: 2805 | O56: 54 | P56: 1338925209984 | Q56: + | R56: 55 | S56: 1522435234375 | U56: 2861360444359 | V56: N/E | W56: 56 | X56: 1727094849536 | Y56: 1134265594823
B57: 55 | C57: 3025 | D57: + | E57: 56 | F57: 3136 | H57: 6161 | I57: N/E | J57: 57 | K57: 3249 | L57: 2912 | O57: 55 | P57: 1522435234375 | Q57: + | R57: 56 | S57: 1727094849536 | U57: 3249530083911 | V57: N/E | W57: 57 | X57: 1954897493193 | Y57: 1294632590718
B58: 56 | C58: 3136 | D58: + | E58: 57 | F58: 3249 | H58: 6385 | I58: N/E | J58: 58 | K58: 3364 | L58: 3021 | O58: 56 | P58: 1727094849536 | Q58: + | R58: 57 | S58: 1954897493193 | U58: 3681992342729 | V58: N/E | W58: 58 | X58: 2207984167552 | Y58: 1474008175177
B59: 57 | C59: 3249 | D59: + | E59: 58 | F59: 3364 | H59: 6613 | I59: N/E | J59: 59 | K59: 3481 | L59: 3132 | O59: 57 | P59: 1954897493193 | Q59: + | R59: 58 | S59: 2207984167552 | U59: 4162881660745 | V59: N/E | W59: 59 | X59: 2488651484819 | Y59: 1674230175926
B60: 58 | C60: 3364 | D60: + | E60: 59 | F60: 3481 | H60: 6845 | I60: N/E | J60: 60 | K60: 3600 | L60: 3245 | O60: 58 | P60: 2207984167552 | Q60: + | R60: 59 | S60: 2488651484819 | U60: 4696635652371 | V60: N/E | W60: 60 | X60: 2799360000000 | Y60: 1897275652371
B61: 59 | C61: 3481 | D61: + | E61: 60 | F61: 3600 | H61: 7081 | I61: N/E | J61: 61 | K61: 3721 | L61: 3360 | O61: 59 | P61: 2488651484819 | Q61: + | R61: 60 | S61: 2799360000000 | U61: 5288011484819 | V61: N/E | W61: 61 | X61: 3142742836021 | Y61: 2145268648798
B62: 60 | C62: 3600 | D62: + | E62: 61 | F62: 3721 | H62: 7321 | I62: N/E | J62: 62 | K62: 3844 | L62: 3477 | O62: 60 | P62: 2799360000000 | Q62: + | R62: 61 | S62: 3142742836021 | U62: 5942102836021 | V62: N/E | W62: 62 | X62: 3521614606208 | Y62: 2420488229813
B63: 61 | C63: 3721 | D63: + | E63: 62 | F63: 3844 | H63: 7565 | I63: N/E | J63: 63 | K63: 3969 | L63: 3596 | O63: 61 | P63: 3142742836021 | Q63: + | R63: 62 | S63: 3521614606208 | U63: 6664357442229 | V63: N/E | W63: 63 | X63: 3938980639167 | Y63: 2725376803062
B64: 62 | C64: 3844 | D64: + | E64: 63 | F64: 3969 | H64: 7813 | I64: N/E | J64: 64 | K64: 4096 | L64: 3717 | O64: 62 | P64: 3521614606208 | Q64: + | R64: 63 | S64: 3938980639167 | U64: 7460595245375 | V64: N/E | W64: 64 | X64: 4398046511104 | Y64: 3062548734271
B65: 63 | C65: 3969 | D65: + | E65: 64 | F65: 4096 | H65: 8065 | I65: N/E | J65: 65 | K65: 4225 | L65: 3840 | O65: 63 | P65: 3938980639167 | Q65: + | R65: 64 | S65: 4398046511104 | U65: 8337027150271 | V65: N/E | W65: 65 | X65: 4902227890625 | Y65: 3434799259646
B66: 64 | C66: 4096 | D66: + | E66: 65 | F66: 4225 | H66: 8321 | I66: N/E | J66: 66 | K66: 4356 | L66: 3965 | O66: 64 | P66: 4398046511104 | Q66: + | R66: 65 | S66: 4902227890625 | U66: 9300274401729 | V66: N/E | W66: 66 | X66: 5455160701056 | Y66: 3845113700673
B67: 65 | C67: 4225 | D67: + | E67: 66 | F67: 4356 | H67: 8581 | I67: N/E | J67: 67 | K67: 4489 | L67: 4092 | O67: 65 | P67: 4902227890625 | Q67: + | R67: 66 | S67: 5455160701056 | U67: 10357388591681 | V67: N/E | W67: 67 | X67: 6060711605323 | Y67: 4296676986358
B68: 66 | C68: 4356 | D68: + | E68: 67 | F68: 4489 | H68: 8845 | I68: N/E | J68: 68 | K68: 4624 | L68: 4221 | O68: 66 | P68: 5455160701056 | Q68: + | R68: 67 | S68: 6060711605323 | U68: 11515872306379 | V68: N/E | W68: 68 | X68: 6722988818432 | Y68: 4792883487947
B69: 67 | C69: 4489 | D69: + | E69: 68 | F69: 4624 | H69: 9113 | I69: N/E | J69: 69 | K69: 4761 | L69: 4352 | O69: 67 | P69: 6060711605323 | Q69: + | R69: 68 | S69: 6722988818432 | U69: 12783700423755 | V69: N/E | W69: 69 | X69: 7446353252589 | Y69: 5337347171166
B70: 68 | C70: 4624 | D70: + | E70: 69 | F70: 4761 | H70: 9385 | I70: N/E | J70: 70 | K70: 4900 | L70: 4485 | O70: 68 | P70: 6722988818432 | Q70: + | R70: 69 | S70: 7446353252589 | U70: 14169342071021 | V70: N/E | W70: 70 | X70: 8235430000000 | Y70: 5933912071021
B71: 69 | C71: 4761 | D71: + | E71: 70 | F71: 4900 | H71: 9661 | I71: N/E | J71: =E71+1 -> 71 | K71: =J71^$F$4 -> 5041 | L71: =H71-K71 -> 4620 | O71: 69 | P71: 7446353252589 | Q71: + | R71: 70 | S71: 8235430000000 | U71: 15681783252589 | V71: N/E | W71: 71 | X71: 9095120158391 | Y71: 6586663094198
B72: =B71+1 -> 70 | C72: =B72^$F$4 -> 4900 | D72: + | E72: =B72+1 -> 71 | F72: =E72^$F$4 -> 5041 | H72: =C72+F72 -> 9941 | I72: N/E | J72: 72 | K72: 5184 | L72: 4757 | O72: =O71+1 -> 70 | P72: =O72^$S$4 -> 8235430000000 | Q72: + | R72: =O72+1 -> 71 | S72: =R72^$S$4 -> 9095120158391 | U72: =P72+S72 -> 17330550158391 | V72: N/E | W72: =R72+1 -> 72 | X72: =W72^$S$4 -> 10030613004288 | Y72: =U72-X72 -> 7299937154103
B73: 71 | C73: 5041 | D73: + | E73: 72 | F73: 5184 | H73: 10225 | I73: N/E | J73: 73 | K73: 5329 | L73: 4896 | O73: 71 | P73: 9095120158391 | Q73: + | R73: 72 | S73: 10030613004288 | U73: 19125733162679 | V73: N/E | W73: 73 | X73: 11047398519097 | Y73: 8078334643582
B74: 72 | C74: 5184 | D74: + | E74: 73 | F74: 5329 | H74: 10513 | I74: N/E | J74: 74 | K74: 5476 | L74: 5037 | O74: 72 | P74: 10030613004288 | Q74: + | R74: 73 | S74: 11047398519097 | U74: 21078011523385 | V74: N/E | W74: 74 | X74: 12151280273024 | Y74: 8926731250361
B75: 73 | C75: 5329 | D75: + | E75: 74 | F75: 5476 | H75: 10805 | I75: N/E | J75: 75 | K75: 5625 | L75: 5180 | O75: 73 | P75: 11047398519097 | Q75: + | R75: 74 | S75: 12151280273024 | U75: 23198678792121 | V75: N/E | W75: 75 | X75: 13348388671875 | Y75: 9850290120246
B76: 74 | C76: 5476 | D76: + | E76: 75 | F76: 5625 | H76: 11101 | I76: N/E | J76: 76 | K76: 5776 | L76: 5325 | O76: 74 | P76: 12151280273024 | Q76: + | R76: 75 | S76: 13348388671875 | U76: 25499668944899 | V76: N/E | W76: 76 | X76: 14645194571776 | Y76: 10854474373123
B77: 75 | C77: 5625 | D77: + | E77: 76 | F77: 5776 | H77: 11401 | I77: N/E | J77: 77 | K77: 5929 | L77: 5472 | O77: 75 | P77: 13348388671875 | Q77: + | R77: 76 | S77: 14645194571776 | U77: 27993583243651 | V77: N/E | W77: 77 | X77: 16048523266853 | Y77: 11945059976798
B78: 76 | C78: 5776 | D78: + | E78: 77 | F78: 5929 | H78: 11705 | I78: N/E | J78: 78 | K78: 6084 | L78: 5621 | O78: 76 | P78: 14645194571776 | Q78: + | R78: 77 | S78: 16048523266853 | U78: 30693717838629 | V78: N/E | W78: 78 | X78: 17565568854912 | Y78: 13128148983717
B79: 77 | C79: 5929 | D79: + | E79: 78 | F79: 6084 | H79: 12013 | I79: N/E | J79: 79 | K79: 6241 | L79: 5772 | O79: 77 | P79: 16048523266853 | Q79: + | R79: 78 | S79: 17565568854912 | U79: 33614092121765 | V79: N/E | W79: 79 | X79: 19203908986159 | Y79: 14410183135606
B80: 78 | C80: 6084 | D80: + | E80: 79 | F80: 6241 | H80: 12325 | I80: N/E | J80: 80 | K80: 6400 | L80: 5925 | O80: 78 | P80: 17565568854912 | Q80: + | R80: 79 | S80: 19203908986159 | U80: 36769477841071 | V80: N/E | W80: 80 | X80: 20971520000000 | Y80: 15797957841071
B81: 79 | C81: 6241 | D81: + | E81: 80 | F81: 6400 | H81: 12641 | I81: N/E | J81: 81 | K81: 6561 | L81: 6080 | O81: 79 | P81: 19203908986159 | Q81: + | R81: 80 | S81: 20971520000000 | U81: 40175428986159 | V81: N/E | W81: 81 | X81: 22876792454961 | Y81: 17298636531198
B82: 80 | C82: 6400 | D82: + | E82: 81 | F82: 6561 | H82: 12961 | I82: N/E | J82: 82 | K82: 6724 | L82: 6237 | O82: 80 | P82: 20971520000000 | Q82: + | R82: 81 | S82: 22876792454961 | U82: 43848312454961 | V82: N/E | W82: 82 | X82: 24928547056768 | Y82: 18919765398193
B83: 81 | C83: 6561 | D83: + | E83: 82 | F83: 6724 | H83: 13285 | I83: N/E | J83: 83 | K83: 6889 | L83: 6396 | O83: 81 | P83: 22876792454961 | Q83: + | R83: 82 | S83: 24928547056768 | U83: 47805339511729 | V83: N/E | W83: 83 | X83: 27136050989627 | Y83: 20669288522102
B84: 82 | C84: 6724 | D84: + | E84: 83 | F84: 6889 | H84: 13613 | I84: N/E | J84: 84 | K84: 7056 | L84: 6557 | O84: 82 | P84: 24928547056768 | Q84: + | R84: 83 | S84: 27136050989627 | U84: 52064598046395 | V84: N/E | W84: 84 | X84: 29509034655744 | Y84: 22555563390651
B85: 83 | C85: 6889 | D85: + | E85: 84 | F85: 7056 | H85: 13945 | I85: N/E | J85: 85 | K85: 7225 | L85: 6720 | O85: 83 | P85: 27136050989627 | Q85: + | R85: 84 | S85: 29509034655744 | U85: 56645085645371 | V85: N/E | W85: 85 | X85: 32057708828125 | Y85: 24587376817246
B86: 84 | C86: 7056 | D86: + | E86: 85 | F86: 7225 | H86: 14281 | I86: N/E | J86: 86 | K86: 7396 | L86: 6885 | O86: 84 | P86: 29509034655744 | Q86: + | R86: 85 | S86: 32057708828125 | U86: 61566743483869 | V86: N/E | W86: 86 | X86: 34792782221696 | Y86: 26773961262173
B87: 85 | C87: 7225 | D87: + | E87: 86 | F87: 7396 | H87: 14621 | I87: N/E | J87: 87 | K87: 7569 | L87: 7052 | O87: 85 | P87: 32057708828125 | Q87: + | R87: 86 | S87: 34792782221696 | U87: 66850491049821 | V87: N/E | W87: 87 | X87: 37725479487783 | Y87: 29125011562038
B88: 86 | C88: 7396 | D88: + | E88: 87 | F88: 7569 | H88: 14965 | I88: N/E | J88: 88 | K88: 7744 | L88: 7221 | O88: 86 | P88: 34792782221696 | Q88: + | R88: 87 | S88: 37725479487783 | U88: 72518261709479 | V88: N/E | W88: 88 | X88: 40867559636992 | Y88: 31650702072487
B89: 87 | C89: 7569 | D89: + | E89: 88 | F89: 7744 | H89: 15313 | I89: N/E | J89: 89 | K89: 7921 | L89: 7392 | O89: 87 | P89: 37725479487783 | Q89: + | R89: 88 | S89: 40867559636992 | U89: 78593039124775 | V89: N/E | W89: 89 | X89: 44231334895529 | Y89: 34361704229246
B90: 88 | C90: 7744 | D90: + | E90: 89 | F90: 7921 | H90: 15665 | I90: N/E | J90: 90 | K90: 8100 | L90: 7565 | O90: 88 | P90: 40867559636992 | Q90: + | R90: 89 | S90: 44231334895529 | U90: 85098894532521 | V90: N/E | W90: 90 | X90: 47829690000000 | Y90: 37269204532521
B91: 89 | C91: 7921 | D91: + | E91: 90 | F91: 8100 | H91: 16021 | I91: N/E | J91: 91 | K91: 8281 | L91: 7740 | O91: 89 | P91: 44231334895529 | Q91: + | R91: 90 | S91: 47829690000000 | U91: 92061024895529 | V91: N/E | W91: 91 | X91: 51676101935731 | Y91: 40384922959798
B92: 90 | C92: 8100 | D92: + | E92: 91 | F92: 8281 | H92: 16381 | I92: N/E | J92: 92 | K92: 8464 | L92: 7917 | O92: 90 | P92: 47829690000000 | Q92: + | R92: 91 | S92: 51676101935731 | U92: 99505791935731 | V92: N/E | W92: 92 | X92: 55784660123648 | Y92: 43721131812083
B93: 91 | C93: 8281 | D93: + | E93: 92 | F93: 8464 | H93: 16745 | I93: N/E | J93: 93 | K93: 8649 | L93: 8096 | O93: 91 | P93: 51676101935731 | Q93: + | R93: 92 | S93: 55784660123648 | U93: 107460762059379 | V93: N/E | W93: 93 | X93: 60170087060757 | Y93: 47290674998622
B94: 92 | C94: 8464 | D94: + | E94: 93 | F94: 8649 | H94: 17113 | I94: N/E | J94: 94 | K94: 8836 | L94: 8277 | O94: 92 | P94: 55784660123648 | Q94: + | R94: 93 | S94: 60170087060757 | U94: 115954747184405 | V94: N/E | W94: 94 | X94: 64847759419264 | Y94: 51106987765141
B95: 93 | C95: 8649 | D95: + | E95: 94 | F95: 8836 | H95: 17485 | I95: N/E | J95: 95 | K95: 9025 | L95: 8460 | O95: 93 | P95: 60170087060757 | Q95: + | R95: 94 | S95: 64847759419264 | U95: 125017846480021 | V95: N/E | W95: 95 | X95: 69833729609375 | Y95: 55184116870646
B96: 94 | C96: 8836 | D96: + | E96: 95 | F96: 9025 | H96: 17861 | I96: N/E | J96: 96 | K96: 9216 | L96: 8645 | O96: 94 | P96: 64847759419264 | Q96: + | R96: 95 | S96: 69833729609375 | U96: 134681489028639 | V96: N/E | W96: 96 | X96: 75144747810816 | Y96: 59536741217823
B97: 95 | C97: 9025 | D97: + | E97: 96 | F97: 9216 | H97: 18241 | I97: N/E | J97: 97 | K97: 9409 | L97: 8832 | O97: 95 | P97: 69833729609375 | Q97: + | R97: 96 | S97: 75144747810816 | U97: 144978477420191 | V97: N/E | W97: 97 | X97: 80798284478113 | Y97: 64180192942078
B98: 96 | C98: 9216 | D98: + | E98: 97 | F98: 9409 | H98: 18625 | I98: N/E | J98: 98 | K98: 9604 | L98: 9021 | O98: 96 | P98: 75144747810816 | Q98: + | R98: 97 | S98: 80798284478113 | U98: 155943032288929 | V98: N/E | W98: 98 | X98: 86812553324672 | Y98: 69130478964257
B99: 97 | C99: 9409 | D99: + | E99: 98 | F99: 9604 | H99: 19013 | I99: N/E | J99: 99 | K99: 9801 | L99: 9212 | O99: 97 | P99: 80798284478113 | Q99: + | R99: 98 | S99: 86812553324672 | U99: 167610837802785 | V99: N/E | W99: 99 | X99: 93206534790699 | Y99: 74404303012086
B100: 98 | C100: 9604 | D100: + | E100: 99 | F100: 9801 | H100: 19405 | I100: N/E | J100: 100 | K100: 10000 | L100: 9405 | O100: 98 | P100: 86812553324672 | Q100: + | R100: 99 | S100: 93206534790699 | U100: 180019088115371 | V100: N/E | W100: 100 | X100: 100000000000000 | Y100: 80019088115371
B101: 99 | C101: 9801 | D101: + | E101: 100 | F101: 10000 | H101: 19801 | I101: N/E | J101: 101 | K101: 10201 | L101: 9600 | O101: 99 | P101: 93206534790699 | Q101: + | R101: 100 | S101: 100000000000000 | U101: 193206534790699 | V101: N/E | W101: 101 | X101: 107213535210701 | Y101: 85992999579998
B102: 100 | C102: 10000 | D102: + | E102: 101 | F102: 10201 | H102: 20201 | I102: N/E | J102: 102 | K102: 10404 | L102: 9797 | O102: 100 | P102: 100000000000000 | Q102: + | R102: 101 | S102: 107213535210701 | U102: 207213535210701 | V102: N/E | W102: 102 | X102: 114868566764928 | Y102: 92344968445773
B103: 101 | C103: 10201 | D103: + | E103: 102 | F103: 10404 | H103: 20605 | I103: N/E | J103: 103 | K103: 10609 | L103: 9996 | O103: 101 | P103: 107213535210701 | Q103: + | R103: 102 | S103: 114868566764928 | U103: 222082101975629 | V103: N/E | W103: 103 | X103: 122987386542487 | Y103: 99094715433142
B104: 102 | C104: 10404 | D104: + | E104: 103 | F104: 10609 | H104: 21013 | I104: N/E | J104: 104 | K104: 10816 | L104: 10197 | O104: 102 | P104: 114868566764928 | Q104: + | R104: 103 | S104: 122987386542487 | U104: 237855953307415 | V104: N/E | W104: 104 | X104: 131593177923584 | Y104: 106262775383831
B105: 103 | C105: 10609 | D105: + | E105: 104 | F105: 10816 | H105: 21425 | I105: N/E | J105: 105 | K105: 11025 | L105: 10400 | O105: 103 | P105: 122987386542487 | Q105: + | R105: 104 | S105: 131593177923584 | U105: 254580564466071 | V105: N/E | W105: 105 | X105: 140710042265625 | Y105: 113870522200446

Sheet Sheet2

Sheet Sheet3
